{"text_format":"1","workbook":"xlsx","n_sheets":2,"sheets":["Лист1","Матрица"],"not_rendered":{"charts":0,"images":0,"macros":1,"external_links":0,"defined_names":0,"comments":0,"pivot_tables":0},"unopened":[],"bounds":{"document_bytes":16777216,"sheet_cells":100000,"rows_first":2000,"rows_last":500,"rows_between":2000,"halvings":0,"cell_chars":16384,"cell_head_chars":4096},"cells_cut":0,"cells_raw":0,"read":"whole","date_system":"1900"}

{"sheet":"Лист1","index":0,"n_rows":19,"n_cols":22,"rows_kept":19,"cut":false,"hidden":false,"merged":[[6,0,6,2],[12,0,12,2],[13,0,13,2],[14,0,14,2],[18,0,31,13],[2,3,2,4],[2,0,3,2],[2,5,2,6],[4,0,4,2],[5,0,5,2],[2,10,5,12],[2,13,2,22],[3,13,5,14],[3,15,5,16],[3,17,5,18],[3,19,5,20],[3,21,5,22],[7,15,7,16],[7,17,7,18],[7,19,7,20],[7,21,7,22],[6,10,7,12],[6,15,6,16],[6,17,6,18],[6,19,6,20],[6,13,7,14],[10,21,10,22],[11,13,11,14],[11,15,11,16],[11,17,11,18],[11,21,11,22],[10,19,11,20],[10,13,10,14],[10,15,10,16],[10,17,10,18],[12,21,12,22],[13,13,13,14],[13,15,13,16],[13,17,13,18],[13,21,13,22],[12,19,13,20],[12,13,12,14],[12,15,12,16],[12,17,12,18],[15,19,15,20],[14,21,15,22],[14,10,15,12],[14,13,14,14],[14,15,14,16],[14,17,14,18],[14,19,14,20],[10,0,10,2],[11,0,11,2],[15,13,15,14],[15,15,15,16],[15,17,15,18],[12,10,13,12],[10,10,11,12],[1,10,1,22],[1,0,1,6],[7,0,7,2],[8,0,8,2],[9,0,9,2],[8,21,8,22],[9,13,9,14],[9,15,9,16],[9,19,9,20],[9,21,9,22],[8,17,9,18],[8,10,9,12],[8,13,8,14],[8,15,8,16],[8,19,8,20],[6,21,6,22]]}
[]
["Реестр рисков",null,null,null,null,null,null,null,null,null,"Матрица «частота–последствие» "]
["Риск",null,null,"Характеристика тяжести последствий",null,"Частота возникновения",null,null,null,null,"Тяжесть последний (ущерб)",null,null,"Оценка вероятности возникновения риска"]
[null,null,null,"Ущерб от событий","Тяжесть последствий ","Количество событий","Вероятность возникновения риска",null,null,null,null,null,null,"Почти невероятно (1)",null,"Маловероятно (2)",null,"Вероятно (3)",null,"Средняя вероятность (4)",null,"Высокая вероятность (5)"]
["Риск 1",null,null,"Не наблюдалось","Незначительный",3.0000000000000001E-3,"Почти невероятно"]
["Риск 2",null,null,"Не наблюдалось","Незначительный",2E-3,"Почти невероятно"]
["Риск 3",null,null,"Не наблюдалось","Незначительный",2E-3,"Почти невероятно",null,null,null,"Незначительный (1)",null,null,"Риск 1; Риск2, Риск3, Риск4"]
["Риск 4",null,null,"Не наблюдалось","Незначительный",1E-3,"Почти невероятно"]
["Риск 5",null,null,5000,"Умеренный",5.0000000000000001E-3,"Вероятно",null,null,null,"Умеренный (2)",null,null,null,null,null,null,"Риск 5"]
["Риск 6",null,null,100000,"Значительный",1.2999999999999999E-2,"Средняя вероятность"]
["Риск 7",null,null,500000,"Высокий",3.3000000000000002E-2,"Средняя вероятность",null,null,null,"Значительный (3)",null,null,null,null,null,null,null,null,"Риск 6"]
["Риск 8",null,null,1000000,"Критический",0.14299999999999999,"Высокая вероятность"]
["И т.д.",null,null,null,null,null,null,null,null,null,"Высокий (4)",null,null,null,null,null,null,null,null,"Риск 7"]
[]
[null,null,null,null,null,null,null,null,null,null,"Критический (5)",null,null,null,null,null,null,null,null,null,null,"Риск 8"]
[]
[]
[]
["нужна помощь, для построения Матрицы «частот–последствия»: Данные берутся и Реестра рисков в данном примере Риск 1 - Тяжесть последствей - \"Незначительный\" Вероятность возникновения риска - \"Почти невероятный\" в матрице должно прописатся текстом Риск 1  . Примечание в матрице возможо будет несколько рисков (как в примере - риск1,2,3,4), можно просто цифрами 1,2,3,4"]

{"sheet":"Матрица","index":1,"n_rows":19,"n_cols":14,"rows_kept":19,"cut":false,"hidden":false,"merged":[[2,8,3,8],[1,0,1,4],[1,8,1,13],[2,0,3,0],[2,1,2,2],[2,3,2,4]]}
[]
["Реестр рисков",null,null,null,null,null,null,null,"Матрица «частота–последствие» "]
["Риск","Характеристика тяжести последствий",null,"Частота возникновения",null,null,null,null,"Тяжесть последний (ущерб)","Оценка вероятности возникновения риска"]
[null,"Ущерб от событий","Тяжесть последствий ","Количество событий","Вероятность возникновения риска",null,null,null,null,"Почти невероятно","Маловероятно","Вероятно","Средняя вероятность","Высокая вероятность"]
["Риск 1","Не наблюдалось","Незначительный",3.0000000000000001E-3,"Почти невероятно",null,null,null,"Незначительный",{"$f":"IFERROR(MergeIfs($A$5:$A$12,$C$5:$C$12,$I5,$E$5:$E$12,J$4),\"\")","v":"Риск 1, Риск 2, Риск 3, Риск 4"},{"$f":"IFERROR(MergeIfs($A$5:$A$12,$C$5:$C$12,$I5,$E$5:$E$12,K$4),\"\")","v":""},"","",""]
["Риск 2","Не наблюдалось","Незначительный",2E-3,"Почти невероятно",null,null,null,"Умеренный",{"$f":"IFERROR(MergeIfs($A$5:$A$12,$C$5:$C$12,$I6,$E$5:$E$12,J$4),\"\")","v":""},"","Риск 5","",""]
["Риск 3","Не наблюдалось","Незначительный",2E-3,"Почти невероятно",null,null,null,"Значительный","","","","Риск 6",""]
["Риск 4","Не наблюдалось","Незначительный",1E-3,"Почти невероятно",null,null,null,"Высокий","","","","Риск 7",""]
["Риск 5",5000,"Умеренный",5.0000000000000001E-3,"Вероятно",null,null,null,"Критический","","","","","Риск 8"]
["Риск 6",100000,"Значительный",1.2999999999999999E-2,"Средняя вероятность"]
["Риск 7",500000,"Высокий",3.3000000000000002E-2,"Средняя вероятность"]
["Риск 8",1000000,"Критический",0.14299999999999999,"Высокая вероятность"]
["И т.д."]
[]
[]
[]
[]
[]
["нужна помощь, для построения Матрицы «частот–последствия»: Данные берутся и Реестра рисков в данном примере Риск 1 - Тяжесть последствей - \"Незначительный\" Вероятность возникновения риска - \"Почти невероятный\" в матрице должно прописатся текстом Риск 1  . Примечание в матрице возможо будет несколько рисков (как в примере - риск1,2,3,4), можно просто цифрами 1,2,3,4"]